[Event "African Championship"]
[Site "followchess.com"]
[Date "2021.05.19"]
[Round "1"]
[White "Abrantes, Persson"]
[Black "Bwalya, Gillan"]
[Result "0-1"]
[ECO "E60"]
[WhiteElo "2018"]
[BlackElo "2405"]
[PlyCount "37"]
[EventDate "2021.??.??"]
[TimeControl "7200+30"]
[WhiteClock "0:50:26"]
[BlackClock "1:10:34"]

1. d4 {[%emt 0:29:33]} Nf6 {[%emt 0:29:38]} 2. Nf3 {[%emt 0:00:04]} g6 3. c4 {
[%emt 0:01:14]} Bg7 {[%emt 0:00:32]} 4. Nc3 {[%emt 0:00:04]} d6 {[%emt 0:00:27]
} 5. h3 {[%emt 0:00:19]} Nbd7 {[%emt 0:02:47]} 6. e4 {[%emt 0:00:54]} e5 {
[%emt 0:04:23]} 7. d5 {[%emt 0:00:39]} Nc5 {[%emt 0:00:31]} 8. Qc2 {[%emt 0:00:
11]} a5 {[%emt 0:00:28]} 9. g4 {[%emt 0:04:11]} h5 {[%emt 0:04:42]} 10. g5 {
[%emt 0:00:19]} Ng8 11. Be3 {[%emt 0:00:23]} b6 {[%emt 0:07:27]} 12. Be2 {
[%emt 0:04:48]} Bd7 {[%emt 0:00:53]} 13. b3 {[%emt 0:00:17]} Ne7 14. Kf1 {
[%emt 0:05:28]} Qc8 {[%emt 0:02:35]} 15. Kg2 {[%emt 0:00:44]} Qd8 {[%emt 0:12:
19]} 16. Kh2 {[%emt 0:01:31]} Qb8 {[%emt 0:04:48]} 17. Rhg1 {[%emt 0:00:44]} c6
{[%emt 0:00:27]} 18. Nd2 {[%emt 0:04:36]} Qc8 {[%emt 0:06:37]} 19. a3 {[%emt 0:
02:57]} 0-1

[Event "African Championship"]
[Site "followchess.com"]
[Date "2021.05.19"]
[Round "1"]
[White "Amin, Bassem"]
[Black "Chimthere, Alfred Charles"]
[Result "1-0"]
[ECO "B50"]
[WhiteElo "2701"]
[BlackElo "2057"]
[PlyCount "53"]
[EventDate "2021.??.??"]
[TimeControl "7200+30"]
[WhiteClock "0:01:02"]
[BlackClock "0:51:27"]

1. e4 {[%emt 0:33:46]} c5 {[%emt 0:33:43]} 2. Nf3 {[%emt 0:00:25]} d6 {[%emt 0:
00:31]} 3. c3 {[%emt 0:01:12]} e6 {[%emt 0:07:53]} 4. d4 {[%emt 0:00:24]} Be7 {
[%emt 0:01:56]} 5. Bd3 {[%emt 0:01:06]} Nf6 {[%emt 0:02:43]} 6. O-O {[%emt 0:
01:18]} Nc6 {[%emt 0:02:32]} 7. dxc5 {[%emt 0:01:31]} dxc5 {[%emt 0:00:32]} 8.
e5 {[%emt 0:00:09]} Nd5 {[%emt 0:10:47]} 9. Qe2 {[%emt 0:03:35]} Qc7 {[%emt 0:
04:01]} 10. a3 {[%emt 0:02:57]} a6 {[%emt 0:00:45]} 11. c4 {[%emt 0:01:10]} Nb6
{[%emt 0:00:34]} 12. Bf4 {[%emt 0:02:56]} Nd7 {[%emt 0:18:53]} 13. Nc3 {
[%emt 0:02:43]} b6 {[%emt 0:00:40]} 14. Nd5 {[%emt 0:04:26]} Qd8 {[%emt 0:09:
04]} 15. Be4 {[%emt 0:08:09]} Bb7 {[%emt 0:06:08]} 16. Rad1 {[%emt 0:01:46]} h6
{[%emt 0:03:24]} 17. Nxe7 {[%emt 0:02:53]} Qxe7 {[%emt 0:02:54]} 18. Rd6 {
[%emt 0:00:31]} Rc8 {[%emt 0:01:05]} 19. Rfd1 {[%emt 0:00:26]} Ndb8 {[%emt 0:
00:25]} 20. h4 {[%emt 0:01:41]} O-O {[%emt 0:06:48]} 21. Bc2 {[%emt 0:02:01]}
Nd4 {[%emt 0:08:10]} 22. Nxd4 {[%emt 0:00:40]} cxd4 {[%emt 0:00:14]} 23. Qd3 {
[%emt 0:02:30]} g6 {[%emt 0:06:08]} 24. Bxh6 {[%emt 0:01:48]} Rfe8 {[%emt 0:01:
16]} 25. Bg5 {[%emt 0:00:28]} Qf8 {[%emt 0:00:01]} 26. h5 {[%emt 0:01:12]} Rc6
{[%emt 0:00:51]} 27. Rxd4 {[%emt 0:00:20]} 1-0

[Event "African Championship"]
[Site "followchess.com"]
[Date "2021.05.19"]
[Round "1"]
[White "Bellahcene, Bilel"]
[Black "Nyambalo, Joseph Xavier"]
[Result "1-0"]
[ECO "A45"]
[WhiteElo "2508"]
[BlackElo "2032"]
[PlyCount "21"]
[EventDate "2021.??.??"]
[TimeControl "7200+30"]

1. d4 Nf6 2. Bf4 c5 3. e3 cxd4 4. exd4 Qb6 5. Nc3 d6 6. Nf3 a6 7. Rb1 Bg4 8.
Be2 e6 9. O-O Nbd7 10. Re1 d5 11. h3 1-0

[Event "African Championship"]
[Site "followchess.com"]
[Date "2021.05.19"]
[Round "1"]
[White "Chipanga, Chiletso"]
[Black "Adly, Ahmed"]
[Result "0-1"]
[ECO "A07"]
[WhiteElo "2043"]
[BlackElo "2615"]
[PlyCount "52"]
[EventDate "2021.??.??"]
[TimeControl "7200+30"]
[WhiteClock "1:16:20"]
[BlackClock "0:21:35"]

1. Nf3 {[%emt 0:30:00]} d5 {[%emt 0:31:31]} 2. g3 {[%emt 0:01:12]} Nf6 {
[%emt 0:00:10]} 3. Bg2 {[%emt 0:00:06]} Nc6 {[%emt 0:00:20]} 4. d4 {[%emt 0:01:
03]} Bf5 {[%emt 0:00:14]} 5. O-O {[%emt 0:01:13]} e6 {[%emt 0:00:20]} 6. Bf4 {
[%emt 0:03:36]} Bd6 {[%emt 0:01:02]} 7. Bxd6 {[%emt 0:00:32]} cxd6 {[%emt 0:00:
06]} 8. Nh4 {[%emt 0:02:13]} Bg4 {[%emt 0:02:28]} 9. Na3 {[%emt 0:03:16]} Qb6 {
[%emt 0:00:44]} 10. h3 {[%emt 0:06:29]} Qxb2 {[%emt 0:04:40]} 11. hxg4 {
[%emt 0:03:39]} Qxa3 {[%emt 0:00:04]} 12. g5 {[%emt 0:15:56]} Nd7 {[%emt 0:00:
08]} 13. e4 {[%emt 0:04:38]} dxe4 {[%emt 0:00:04]} 14. Bxe4 {[%emt 0:00:07]} d5
15. Bg2 {[%emt 0:03:12]} O-O {[%emt 0:00:38]} 16. Qg4 {[%emt 0:08:54]} Qc3 {
[%emt 0:00:33]} 17. Rfd1 {[%emt 0:01:21]} Nb6 {[%emt 0:00:40]} 18. Bf1 {
[%emt 0:07:04]} Nd7 {[%emt 0:00:20]} 19. Bg2 {[%emt 0:00:00]} Nb6 {[%emt 0:00:
40]} 20. Bf1 {[%emt 0:01:00]} g6 {[%emt 0:01:37]} 21. Kg2 {[%emt 0:03:00]} Nb4
{[%emt 0:01:40]} 22. a3 {[%emt 0:04:46]} Nxc2 {[%emt 0:00:51]} 23. Rac1 {
[%emt 0:02:24]} Rac8 {[%emt 0:00:33]} 24. Be2 {[%emt 0:02:07]} Nc4 {[%emt 0:05:
35]} 25. Bxc4 {[%emt 0:03:27]} Rxc4 {[%emt 0:01:12]} 26. Nf3 {[%emt 0:00:10]}
Ne3+ {-error} 0-1

[Event "African Championship"]
[Site "followchess.com"]
[Date "2021.05.19"]
[Round "1"]
[White "Magana, Ben"]
[Black "Rakotomaharo, Fy Antenaina"]
[Result "0-1"]
[ECO "D05"]
[WhiteElo "2031"]
[BlackElo "2429"]
[PlyCount "80"]
[EventDate "2021.??.??"]
[TimeControl "7200+30"]
[WhiteClock "0:11:00"]
[BlackClock "0:03:08"]

1. d4 {[%emt 0:30:54]} d5 {[%emt 0:29:46]} 2. Nf3 {[%emt 0:00:06]} Nf6 {
[%emt 0:00:56]} 3. e3 {[%emt 0:00:30]} e6 {[%emt 0:01:23]} 4. Bd3 {[%emt 0:00:
05]} c5 {[%emt 0:02:43]} 5. c3 {[%emt 0:00:02]} Nc6 {[%emt 0:00:52]} 6. Nbd2 {
[%emt 0:00:11]} Bd6 {[%emt 0:01:15]} 7. O-O {[%emt 0:00:07]} O-O {[%emt 0:00:
09]} 8. dxc5 {[%emt 0:00:40]} Bxc5 {[%emt 0:01:08]} 9. b4 {[%emt 0:00:02]} Bd6
{[%emt 0:01:14]} 10. e4 {[%emt 0:11:52]} Ne5 11. Nxe5 {[%emt 0:06:19]} Bxe5 {
[%emt 0:06:07]} 12. Bb2 {[%emt 0:00:41]} Qc7 {[%emt 0:11:17]} 13. g3 {[%emt 0:
00:26]} Rd8 14. Qe2 {[%emt 0:10:56]} Bd7 {[%emt 0:09:07]} 15. Rfe1 {[%emt 0:17:
50]} dxe4 {[%emt 0:05:27]} 16. Nxe4 {[%emt 0:01:40]} Bc6 {[%emt 0:00:10]} 17.
Ng5 h6 {[%emt 0:08:26]} 18. Nf3 {[%emt 0:04:28]} Bd6 {[%emt 0:00:38]} 19. Nd2 {
[%emt 0:00:00]} Be5 {[%emt 0:00:22]} 20. Nf3 {[%emt 0:01:00]} Bd6 {[%emt 0:00:
38]} 21. Nd4 {[%emt 0:04:41]} Be8 {[%emt 0:04:23]} 22. a3 {[%emt 0:02:08]} a6 {
[%emt 0:00:49]} 23. c4 {[%emt 0:00:31]} Rac8 {[%emt 0:02:07]} 24. Rad1 {
[%emt 0:04:01]} a5 {[%emt 0:04:33]} 25. c5 {[%emt 0:02:50]} Bf8 {[%emt 0:00:21]
} 26. Nf3 {[%emt 0:08:40]} Bc6 {[%emt 0:04:56]} 27. Be5 {[%emt 0:03:30]} Qe7 {
[%emt 0:00:25]} 28. Nd4 {[%emt 0:00:30]} axb4 {[%emt 0:02:02]} 29. axb4 {
[%emt 0:00:01]} Nd5 {[%emt 0:02:19]} 30. Qe4 {[%emt 0:04:44]} g6 {[%emt 0:01:
47]} 31. b5 {[%emt 0:01:02]} Be8 {[%emt 0:03:37]} 32. Nb3 {[%emt 0:00:22]} Bg7
{[%emt 0:01:21]} 33. Bxg7 {[%emt 0:10:23]} Kxg7 {[%emt 0:00:24]} 34. Bc4 {
[%emt 0:01:11]} Nc3 {[%emt 0:07:06]} 35. Rxd8 {[%emt 0:01:16]} Rxd8 {[%emt 0:
00:16]} 36. Qe5+ {[%emt 0:00:04]} Qf6 {[%emt 0:00:26]} 37. Qxf6+ {[%emt 0:01:
29]} Kxf6 {[%emt 0:00:10]} 38. b6 {[%emt 0:00:01]} Bc6 {[%emt 0:02:23]} 39. Rc1
{[%emt 0:01:27]} Na4 {[%emt 0:06:48]} 40. Bf1 {[%emt 0:00:12]} Bd5 {[%emt 0:01:
09]} 0-1

[Event "African Championship"]
[Site "followchess.com"]
[Date "2021.05.19"]
[Round "1"]
[White "Wageih, Kareim"]
[Black "Okonkwo, Ifeanyi"]
[Result "1-0"]
[ECO "B23"]
[WhiteElo "2425"]
[BlackElo "2029"]
[PlyCount "82"]
[EventDate "2021.??.??"]
[TimeControl "7200+30"]

1. e4 c5 2. Nc3 e6 3. g3 Nc6 4. Bg2 g6 5. d3 Bg7 6. Nf3 Nge7 7. Be3 Nd4 8. O-O
O-O 9. Qd2 Nec6 10. Ne1 Re8 11. Nd1 d6 12. c3 Nb5 13. f4 Nc7 14. g4 f5 15. h3
Bd7 16. Nf3 b5 17. Ng5 h6 18. Nf3 Rb8 19. Qf2 fxe4 20. dxe4 Rf8 21. Nh4 g5 22.
Ng6 Rf6 23. f5 Be8 24. e5 dxe5 25. h4 Rxg6 26. fxg6 Nd5 27. hxg5 hxg5 28. Bxd5
exd5 29. Qf5 Qd6 30. Qf2 Qd8 31. Qf5 Qd6 32. Nf2 Ne7 33. Qxg5 Nxg6 34. Nd3 d4
35. cxd4 cxd4 36. Bd2 Bc6 37. Nb4 Bb7 38. Rf2 a5 39. Nd3 Be4 40. Ne1 b4 41. Ng2
Bxg2 1-0

[Event "African Championship"]
[Site "followchess.com"]
[Date "2021.05.19"]
[Round "2"]
[White "Adly, Ahmed"]
[Black "Abdulraheem Abdulrahman Akint"]
[Result "1-0"]
[ECO "D02"]
[WhiteElo "2615"]
[BlackElo "2264"]
[PlyCount "43"]
[EventDate "2021.??.??"]
[TimeControl "7200+30"]
[WhiteClock "0:41:10"]
[BlackClock "1:07:02"]

1. d4 {[%emt 0:29:49]} d5 {[%emt 0:29:39]} 2. Nf3 {[%emt 0:00:05]} Nf6 {
[%emt 0:00:11]} 3. g3 {[%emt 0:00:20]} Bf5 {[%emt 0:00:47]} 4. Bg2 {[%emt 0:00:
06]} e6 {[%emt 0:00:27]} 5. c4 {[%emt 0:00:30]} Be7 {[%emt 0:01:00]} 6. Nc3 {
[%emt 0:00:16]} O-O {[%emt 0:00:34]} 7. Nh4 {[%emt 0:00:54]} Bg4 {[%emt 0:01:
11]} 8. h3 {[%emt 0:00:25]} Bh5 {[%emt 0:00:12]} 9. g4 {[%emt 0:00:16]} Bg6 {
[%emt 0:02:18]} 10. g5 {[%emt 0:00:25]} Ne8 {[%emt 0:03:03]} 11. Nxg6 {[%emt 0:
09:50]} hxg6 {[%emt 0:01:00]} 12. h4 {[%emt 0:00:30]} c6 {[%emt 0:01:36]} 13.
e4 {[%emt 0:00:27]} dxe4 {[%emt 0:04:41]} 14. c5 {[%emt 0:10:39]} b6 {[%emt 0:
06:15]} 15. Nxe4 {[%emt 0:01:05]} bxc5 {[%emt 0:00:25]} 16. h5 {[%emt 0:02:55]}
cxd4 {[%emt 0:10:57]} 17. Qg4 {[%emt 0:01:15]} Nc7 {[%emt 0:01:05]} 18. Qh4 {
[%emt 0:01:48]} Bb4+ {[%emt 0:14:59]} 19. Kf1 {[%emt 0:00:31]} Qe7 {[%emt 0:01:
29]} 20. Nf6+ {[%emt 0:01:39]} gxf6 {[%emt 0:00:25]} 21. gxf6 {[%emt 0:00:06]}
Qxf6 {[%emt 0:07:06]} 22. Qxf6 {[%emt 0:00:07]} 1-0

[Event "African Championship"]
[Site "followchess.com"]
[Date "2021.05.19"]
[Round "2"]
[White "Bwalya, Gillan"]
[Black "Paiva, Donaldo"]
[Result "1-0"]
[ECO "C95"]
[WhiteElo "2405"]
[BlackElo "2230"]
[PlyCount "65"]
[EventDate "2021.??.??"]
[TimeControl "7200+30"]

1. e4 e5 2. Nf3 Nc6 3. Bb5 a6 4. Ba4 Nf6 5. O-O Be7 6. Re1 b5 7. Bb3 d6 8. c3
O-O 9. h3 Nb8 10. d4 Nbd7 11. Nbd2 Bb7 12. Bc2 Re8 13. Nf1 Bf8 14. Ng3 g6 15.
Bg5 h6 16. Bd2 Bg7 17. Qc1 Kh7 18. dxe5 dxe5 19. Be3 Qe7 20. Qd1 Nc5 21. Nd2
Rad8 22. Qe2 Ne6 23. a4 c6 24. b4 h5 25. Nf3 Nd7 26. Nf5 Qf8 27. Red1 gxf5 28.
exf5 Nf4 29. Bxf4 exf4 30. f6+ Kh8 31. fxg7+ Qxg7 32. Rxd7 Rg8 33. Qe5 1-0

[Event "African Championship"]
[Site "followchess.com"]
[Date "2021.05.19"]
[Round "2"]
[White "Mulenga, Prince Daniel"]
[Black "Amin, Bassem"]
[Result "0-1"]
[ECO "E73"]
[WhiteElo "2246"]
[BlackElo "2701"]
[PlyCount "62"]
[EventDate "2021.??.??"]
[TimeControl "7200+30"]
[WhiteClock "0:09:10"]
[BlackClock "0:08:31"]

1. d4 {[%emt 0:29:36]} Nf6 {[%emt 0:31:50]} 2. c4 {[%emt 0:00:05]} g6 {[%emt 0:
00:11]} 3. Nc3 {[%emt 0:00:28]} Bg7 {[%emt 0:00:07]} 4. e4 {[%emt 0:00:04]} d6
{[%emt 0:00:20]} 5. Be2 {[%emt 0:00:54]} O-O {[%emt 0:00:11]} 6. Bg5 {[%emt 0:
00:06]} Na6 {[%emt 0:01:20]} 7. Qd2 {[%emt 0:01:33]} e5 {[%emt 0:00:39]} 8. d5
{[%emt 0:01:47]} Qe8 {[%emt 0:00:09]} 9. h4 {[%emt 0:01:49]} Nc5 {[%emt 0:09:
26]} 10. f3 {[%emt 0:05:01]} Nh5 {[%emt 0:01:06]} 11. Nb5 {[%emt 0:03:03]} Na6
{[%emt 0:05:25]} 12. g4 {[%emt 0:01:13]} Nf4 {[%emt 0:02:09]} 13. Bf1 {[%emt 0:
04:08]} f5 {[%emt 0:02:08]} 14. gxf5 {[%emt 0:00:18]} gxf5 {[%emt 0:00:13]} 15.
O-O-O {[%emt 0:00:02]} fxe4 {[%emt 0:13:01]} 16. fxe4 {[%emt 0:01:58]} Bg4 {
[%emt 0:00:35]} 17. Re1 {[%emt 0:03:50]} h6 {[%emt 0:00:27]} 18. Bxf4 {[%emt 0:
01:17]} exf4 {[%emt 0:00:06]} 19. Nh3 {[%emt 0:00:42]} f3 {[%emt 0:19:45]} 20.
Nf2 {[%emt 0:03:24]} Bd7 {[%emt 0:05:20]} 21. Rg1 {[%emt 0:00:29]} Kh8 {
[%emt 0:00:19]} 22. Rxg7 {[%emt 0:17:02]} Kxg7 {[%emt 0:00:23]} 23. e5 {
[%emt 0:00:01]} dxe5 {[%emt 0:03:46]} 24. Bd3 {[%emt 0:01:05]} Qh5 {[%emt 0:05:
33]} 25. Nd4 {[%emt 0:32:11]} Nc5 {[%emt 0:08:07]} 26. Bc2 {[%emt 0:02:00]} Rf4
{[%emt 0:05:04]} 27. Rg1+ {[%emt 0:01:03]} Kh8 {[%emt 0:01:44]} 28. Qb4 {
[%emt 0:07:54]} b6 {[%emt 0:02:16]} 29. Ne6 {[%emt 0:01:51]} Nxe6 {[%emt 0:03:
47]} 30. dxe6 {[%emt 0:00:41]} Bxe6 31. Qe7 {[%emt 0:01:24]} Qf7 {[%emt 0:00:
53]} 0-1

[Event "African Championship"]
[Site "followchess.com"]
[Date "2021.05.19"]
[Round "2"]
[White "Oragwu, Chukwunonso"]
[Black "Wageih, Kareim"]
[Result "1-0"]
[ECO "B40"]
[WhiteElo "2241"]
[BlackElo "2425"]
[PlyCount "116"]
[EventDate "2021.??.??"]
[TimeControl "7200+30"]
[WhiteClock "0:01:12"]
[BlackClock "0:05:45"]

1. e4 {[%emt 0:30:28]} c5 {[%emt 0:30:20]} 2. Nf3 {[%emt 0:01:06]} e6 {[%emt 0:
00:19]} 3. Be2 {[%emt 0:01:03]} Nc6 {[%emt 0:00:31]} 4. O-O {[%emt 0:01:02]}
Nf6 {[%emt 0:02:05]} 5. Nc3 {[%emt 0:00:45]} d5 {[%emt 0:05:04]} 6. exd5 {
[%emt 0:00:28]} exd5 {[%emt 0:00:02]} 7. d4 {[%emt 0:00:12]} cxd4 {[%emt 0:01:
47]} 8. Nxd4 {[%emt 0:01:45]} Be7 {[%emt 0:00:07]} 9. Bf3 {[%emt 0:06:24]} Ne5
{[%emt 0:06:11]} 10. Re1 {[%emt 0:07:59]} Nxf3+ {[%emt 0:00:27]} 11. Qxf3 {
[%emt 0:00:21]} O-O {[%emt 0:01:19]} 12. Bg5 {[%emt 0:02:08]} h6 {[%emt 0:13:
55]} 13. Bh4 {[%emt 0:16:15]} Bg4 {[%emt 0:34:39]} 14. Qd3 {[%emt 0:05:16]} Qd7
{[%emt 0:08:50]} 15. Re5 {[%emt 0:12:55]} g5 {[%emt 0:08:51]} 16. Bg3 {[%emt 0:
09:40]} Bd6 {[%emt 0:02:16]} 17. Ree1 {[%emt 0:09:27]} Bxg3 {[%emt 0:03:10]}
18. Qxg3 {[%emt 0:03:35]} Nh5 {[%emt 0:02:27]} 19. Qe5 {[%emt 0:00:37]} Rad8 {
[%emt 0:03:08]} 20. Qe7 {[%emt 0:07:33]} Nf4 {[%emt 0:00:05]} 21. Qf6 {[%emt 0:
03:23]} Qd6 {[%emt 0:01:33]} 22. Qxd6 {[%emt 0:00:28]} Rxd6 {[%emt 0:00:01]}
23. Ndb5 {[%emt 0:01:17]} Rb6 {[%emt 0:00:50]} 24. Rab1 {[%emt 0:02:03]} a6 {
[%emt 0:00:34]} 25. Nd4 {[%emt 0:00:58]} Rb4 {[%emt 0:00:13]} 26. Nb3 {[%emt 0:
02:30]} d4 {[%emt 0:01:27]} 27. Ne4 {[%emt 0:00:33]} Kg7 {[%emt 0:00:17]} 28.
f3 {[%emt 0:00:32]} Be6 {[%emt 0:00:18]} 29. Rbd1 {[%emt 0:01:11]} d3 {[%emt 0:
01:55]} 30. c3 {[%emt 0:00:10]} Rb6 {[%emt 0:00:38]} 31. g3 {[%emt 0:00:26]}
Ng6 {[%emt 0:01:32]} 32. Nec5 {[%emt 0:00:52]} Bxb3 {[%emt 0:00:35]} 33. axb3 {
[%emt 0:00:53]} Rc8 {[%emt 0:00:31]} 34. b4 {[%emt 0:00:14]} a5 {[%emt 0:00:00]
} 35. Nxd3 {[%emt 0:00:07]} a4 {[%emt 0:00:42]} 36. Ra1 {[%emt 0:00:18]} Rd6 {
[%emt 0:00:24]} 37. Nc5 {[%emt 0:00:54]} b5 {[%emt 0:00:24]} 38. Rad1 {[%emt 0:
00:55]} Rcd8 {[%emt 0:00:26]} 39. Rxd6 {[%emt 0:00:27]} Rxd6 {[%emt 0:00:01]}
40. Kf2 {[%emt 0:00:00]} Rd2+ {[%emt 0:00:00]} 41. Re2 {[%emt 0:00:00]} Rd1 {
[%emt 0:00:00]} 42. Na6 {[%emt 0:00:00]} Rd7 {[%emt 0:00:00]} 43. Nc5 {[%emt 0:
00:00]} Rd1 {[%emt 0:00:00]} 44. c4 {[%emt 0:00:00]} bxc4 {[%emt 0:00:00]} 45.
Nxa4 {[%emt 0:00:00]} f6 {[%emt 0:00:00]} 46. b5 {[%emt 0:00:00]} Rd3 {[%emt 0:
00:00]} 47. Re3 {[%emt 0:00:00]} Rd5 {[%emt 0:00:00]} 48. Nc3 {[%emt 0:00:00]}
Rd2+ {[%emt 0:00:00]} 49. Re2 {[%emt 0:00:00]} Rd6 {[%emt 0:00:00]} 50. Kg2 {
[%emt 0:00:00]} Kf7 {[%emt 0:00:00]} 51. Ne4 {[%emt 0:00:53]} Rb6 {[%emt 0:01:
13]} 52. Rd2 {[%emt 0:01:17]} Ke7 {[%emt 0:05:03]} 53. Nc3 {[%emt 0:00:16]} Ke6
{[%emt 0:00:20]} 54. Rd4 {[%emt 0:00:47]} Ne5 {[%emt 0:00:38]} 55. f4 {[%emt 0:
02:09]} Nd7 {[%emt 0:01:48]} 56. f5+ {[%emt 0:00:18]} Kxf5 {[%emt 0:00:33]} 57.
Rxd7 {[%emt 0:00:06]} h5 {[%emt 0:00:13]} 58. Rd4 {[%emt 0:00:19]} g4 {[%emt 0:
00:06]} 1-0

[Event "African Championship"]
[Site "followchess.com"]
[Date "2021.05.19"]
[Round "2"]
[White "Rakotomaharo, Fy Antenaina"]
[Black "Osunfuyi, Abimbola"]
[Result "1-0"]
[ECO "B45"]
[WhiteElo "2429"]
[BlackElo "2246"]
[PlyCount "37"]
[EventDate "2021.??.??"]
[TimeControl "7200+30"]
[WhiteClock "0:42:00"]
[BlackClock "0:49:58"]

1. e4 {[%emt 0:29:33]} c5 {[%emt 0:31:03]} 2. Nf3 {[%emt 0:00:18]} Nc6 {
[%emt 0:00:37]} 3. d4 {[%emt 0:00:07]} cxd4 {[%emt 0:01:30]} 4. Nxd4 {[%emt 0:
00:06]} Nf6 {[%emt 0:00:49]} 5. Nc3 {[%emt 0:00:05]} e6 {[%emt 0:01:53]} 6.
Nxc6 {[%emt 0:01:18]} bxc6 {[%emt 0:00:19]} 7. e5 {[%emt 0:00:05]} Nd5 {
[%emt 0:00:31]} 8. Ne4 {[%emt 0:00:05]} Bb7 {[%emt 0:02:31]} 9. c4 {[%emt 0:10:
26]} Nb4 {[%emt 0:01:16]} 10. Bg5 {[%emt 0:16:35]} Qa5 {[%emt 0:03:19]} 11.
Nd6+ {[%emt 0:00:10]} Bxd6 {[%emt 0:00:30]} 12. Qxd6 {[%emt 0:00:03]} Nd3+ {
[%emt 0:04:33]} 13. Kd1 {[%emt 0:00:09]} Nxf2+ {[%emt 0:21:08]} 14. Ke2 {
[%emt 0:05:28]} f6 {[%emt 0:00:32]} 15. exf6 {[%emt 0:12:13]} O-O-O {[%emt 0:
14:39]} 16. Bf4 {[%emt 0:02:18]} e5 {[%emt 0:00:23]} 17. Bxe5 {[%emt 0:00:08]}
Qxe5+ {[%emt 0:00:47]} 18. Qxe5 {[%emt 0:00:09]} Rhe8 {[%emt 0:00:40]} 19. Qxe8
{[%emt 0:00:16]} 1-0

[Event "African Championship"]
[Site "followchess.com"]
[Date "2021.05.19"]
[Round "2"]
[White "Talbi, Chafik"]
[Black "Bellahcene, Bilel"]
[Result "0-1"]
[ECO "E32"]
[WhiteElo "2244"]
[BlackElo "2508"]
[PlyCount "118"]
[EventDate "2021.??.??"]
[TimeControl "7200+30"]
[WhiteClock "0:37:45"]
[BlackClock "0:00:55"]

1. d4 {[%emt 0:30:06]} Nf6 {[%emt 0:29:57]} 2. c4 {[%emt 0:00:27]} e6 {[%emt 0:
00:22]} 3. Nc3 {[%emt 0:00:19]} Bb4 {[%emt 0:00:07]} 4. Qc2 {[%emt 0:00:27]} d6
{[%emt 0:03:12]} 5. a3 {[%emt 0:04:17]} Bxc3+ {[%emt 0:00:48]} 6. Qxc3 {
[%emt 0:00:06]} a5 {[%emt 0:07:15]} 7. g3 {[%emt 0:07:35]} a4 {[%emt 0:02:35]}
8. Bg2 {[%emt 0:00:26]} Nc6 {[%emt 0:01:25]} 9. Bf4 {[%emt 0:07:53]} O-O {
[%emt 0:00:49]} 10. Rd1 {[%emt 0:02:13]} Qe7 {[%emt 0:07:20]} 11. Nf3 {[%emt 0:
07:35]} Re8 {[%emt 0:00:48]} 12. h3 {[%emt 0:05:56]} h6 {[%emt 0:11:33]} 13.
Be3 {[%emt 0:13:11]} Na5 {[%emt 0:02:13]} 14. Nd2 {[%emt 0:06:17]} Bd7 {
[%emt 0:00:50]} 15. O-O {[%emt 0:13:40]} Bc6 {[%emt 0:00:10]} 16. f3 {[%emt 0:
01:00]} b5 {[%emt 0:06:43]} 17. Bf2 {[%emt 0:02:04]} Reb8 {[%emt 0:06:34]} 18.
c5 {[%emt 0:07:15]} b4 {[%emt 0:03:50]} 19. Qc2 {[%emt 0:01:03]} d5 {[%emt 0:
09:42]} 20. Rb1 {[%emt 0:10:56]} Rb7 {[%emt 0:01:36]} 21. Rfd1 {[%emt 0:02:17]}
Nb3 {[%emt 0:00:50]} 22. axb4 {[%emt 0:00:41]} Rxb4 {[%emt 0:00:15]} 23. Nxb3 {
[%emt 0:00:40]} Rxb3 {[%emt 0:01:29]} 24. Be1 {[%emt 0:02:00]} Bb5 25. Bc3 {
[%emt 0:01:00]} Nh5 {[%emt 0:00:57]} 26. Be1 {[%emt 0:01:31]} c6 {[%emt 0:00:
05]} 27. Kh2 {[%emt 0:01:20]} Re8 {[%emt 0:00:16]} 28. f4 {[%emt 0:00:29]} Nf6
{[%emt 0:01:51]} 29. Ra1 {[%emt 0:00:33]} Rb8 {[%emt 0:00:26]} 30. Bc3 {
[%emt 0:00:49]} Qb7 {[%emt 0:05:29]} 31. Re1 {[%emt 0:00:27]} Ra8 {[%emt 0:00:
31]} 32. Ra3 {[%emt 0:00:15]} Bc4 {[%emt 0:00:18]} 33. Rea1 {[%emt 0:00:27]}
Qb5 {[%emt 0:01:16]} 34. Bf3 {[%emt 0:00:28]} Ne8 {[%emt 0:01:48]} 35. Rxb3 {
[%emt 0:00:31]} Bxb3 {[%emt 0:00:04]} 36. Qd2 {[%emt 0:00:30]} Nc7 {[%emt 0:00:
28]} 37. e3 {[%emt 0:00:42]} Bc4 {[%emt 0:00:49]} 38. Ra3 {[%emt 0:00:39]} Bb3
{[%emt 0:04:24]} 39. Be2 {[%emt 0:00:44]} Qb7 {[%emt 0:00:29]} 40. Ra1 {
[%emt 0:00:00]} Ne8 {[%emt 0:00:00]} 41. Bd3 {[%emt 0:00:00]} Nf6 {[%emt 0:00:
00]} 42. Qg2 {[%emt 0:00:00]} Bc4 {[%emt 0:00:00]} 43. Bc2 {[%emt 0:00:00]} Qb5
{[%emt 0:00:00]} 44. Qd2 {[%emt 0:00:00]} Ne4 {[%emt 0:00:00]} 45. Bxe4 {
[%emt 0:00:00]} dxe4 {[%emt 0:00:00]} 46. Kg2 {[%emt 0:00:00]} Be2 {[%emt 0:00:
00]} 47. g4 {[%emt 0:00:00]} Bf3+ {[%emt 0:00:00]} 48. Kg3 {[%emt 0:00:00]} f6
{[%emt 0:00:00]} 49. Qc2 {[%emt 0:00:00]} Kf7 {[%emt 0:00:00]} 50. Qd2 {
[%emt 0:00:00]} h5 {[%emt 0:00:00]} 51. g5 {[%emt 0:00:00]} fxg5 {[%emt 0:00:
00]} 52. fxg5 {[%emt 0:04:12]} h4+ {[%emt 0:00:00]} 53. Kf2 {[%emt 0:01:06]}
Qb8 {[%emt 0:00:00]} 54. Rg1 {[%emt 0:01:25]} Kg6 {[%emt 0:00:00]} 55. Ke1 {
[%emt 0:00:52]} a3 {[%emt 0:00:00]} 56. bxa3 {[%emt 0:00:57]} Rxa3 {[%emt 0:00:
00]} 57. d5 {[%emt 0:00:20]} exd5 {[%emt 0:00:00]} 58. Qb2 {[%emt 0:00:47]}
Qxb2 {[%emt 0:00:00]} 59. Bxb2 {[%emt 0:00:07]} Rxe3+ {[%emt 0:00:00]} 0-1